bitfinex/quotes_ETHUSD_20250403
["timestamp","ask_amount","ask_price","bid_price","bid_amount"]
[1743690952023,5.64379,1771.9,1771.6,0.8091]
[1743690952229,5.64337,1772.0,1771.7,5.64423]
[1743690952522,5.64337,1772.0,1771.7,5.64426]
[1743690952724,3.41961033,1772.0,1771.6,0.8091]
[1743690952888,5.64401,1771.8,1771.6,0.8091]
[1743690953091,5.64401,1771.8,1771.4,0.7855]
[1743690953294,5.64401,1771.8,1771.4,6.4306]
[1743690953621,5.64405,1771.8,1771.4,0.7855]
[1743690953925,5.64456,1771.7,1771.4,0.7855]
[1743690954220,5.64493,1771.5,1771.2,0.8206]
[1743690954419,5.64504,1771.5,1771.2,0.8206]
[1743690955613,3.0,1771.5,1771.2,6.46636]
[1743690956139,8.64507,1771.5,1771.2,0.8206]
[1743690956338,5.64526,1771.4,1771.2,0.8206]
[1743690956639,14.29023,1771.5,1771.2,0.8206]
[1743690956787,16.388953,1771.5,1771.2,0.8206]
[1743690956991,5.6453,1771.4,1771.2,0.8206]
[1743690957219,5.6453,1771.4,1771.1,0.05]
[1743690957424,5.64542,1771.4,1771.1,0.05]
[1743690957588,11.29089,1771.4,1771.1,0.05]
[1743690957792,12.9298513,1771.4,1771.1,0.05]
[1743690958128,10.743653,1771.5,1771.2,5.64587]
[1743690960909,5.64588,1771.2,1771.1,0.05]
[1743690961627,8.64572,1771.3,1771.1,0.05]
[1743690962437,8.64588,1771.2,1771.1,0.05]
[1743690962602,11.15504,1771.2,1771.1,0.05]
[1743690962797,5.64844,1770.4,1770.3,0.7881]
[1743690963003,5.6489,1770.3,1770.1,0.8381]
[1743690963401,11.29792,1770.3,1770.1,0.8381]
[1743690963605,5.64907,1770.2,1770.1,0.05]
[1743690964298,8.64907,1770.2,1770.1,0.05]
[1743690964502,8.64907,1770.2,1769.4,0.8132]
[1743690964503,11.30288,1769.5,1769.1,6.49557]
[1743690964700,5.65195,1769.3,1769.1,0.8431]
[1743690964909,5.65164,1769.4,1769.1,0.8431]
[1743690965312,6.694,1769.5,1769.3,5.65184]
[1743690965804,3.0,1769.8,1769.5,5.65126]
[1743690965805,15.34438,1769.8,1769.5,5.65126]
[1743690966007,3.0,1770.0,1769.6,5.65095]
[1743690966329,8.64908,1770.2,1769.7,6.43925]
[1743690966540,8.64908,1770.2,1769.8,5.65035]
[1743690966541,8.64929,1770.2,1769.8,5.65035]
[1743690966733,3.0,1770.2,1769.9,5.64992]
[1743690967105,13.474602,1770.3,1769.9,5.64983]
[1743690967302,13.474602,1770.3,1769.9,5.65003]
[1743690967303,6.696,1770.3,1769.9,5.65003]
[1743690967511,5.64957,1770.1,1769.8,1.208968]
[1743690967699,3.0,1770.2,1769.9,5.64991]
[1743690967903,3.0,1770.2,1769.9,5.64982]
[1743690968206,3.0,1770.2,1769.7,0.7887]
[1743690968207,5.64975,1770.0,1769.7,0.7887]
[1743690968523,5.6496,1770.1,1769.7,6.4391]
[1743690968711,11.29922,1770.1,1769.7,7.648109]
[1743690968904,12.34476,1770.3,1769.7,1.997709]
[1743690969099,0.8302,1770.7,1769.7,1.997709]
[1743690969300,6.696,1770.7,1770.2,0.8322]
[1743690969504,6.696,1770.7,1770.4,5.64832]
[1743690969720,6.696,1770.7,1770.2,0.8322]
[1743690970032,7.930327,1770.7,1770.2,0.8322]
[1743690970234,5.64886,1770.3,1769.9,6.41833]
[1743690970439,5.64886,1770.3,1769.9,6.41815]
[1743690970635,11.29793,1770.3,1769.9,6.41815]
[1743690970804,5.64909,1770.2,1769.9,6.41815]
[1743690971134,5.64828,1770.5,1770.1,5.64929]
[1743690971334,3.0,1770.5,1770.2,5.64879]
[1743690971534,6.695,1770.6,1769.9,0.7683]
[1743690971709,6.695,1770.6,1770.4,0.8132]
[1743690972137,12.34293,1770.6,1770.2,5.64894]
[1743690972338,6.695,1770.6,1770.4,5.64839]
[1743690972633,6.695,1770.6,1770.3,5.64872]
[1743690972855,12.34286,1770.6,1770.3,5.64872]
[1743690973063,12.34286,1770.6,1770.3,5.64867]
[1743690973224,6.695,1770.6,1770.3,11.29727]
[1743690973429,3.0,1770.8,1770.5,5.64794]
[1743690973860,6.42996,1771.4,1771.0,5.64637]
[1743690974059,5.64598,1771.2,1770.8,0.7691]
[1743690974248,5.64778,1770.7,1770.5,0.7691]
[1743690974569,5.64812,1770.5,1770.0,6.46007]
[1743690974864,5.64886,1770.3,1770.0,6.45996]
[1743690975042,5.64886,1770.3,1770.0,0.8104]
[1743690975243,5.64923,1770.2,1769.8,5.65016]
[1743690975563,5.64923,1770.2,1769.9,5.64995]
[1743690975734,5.64923,1770.2,1769.8,5.65016]
[1743690975934,5.64951,1770.1,1769.7,6.47397]
[1743690976453,6.06744698,1770.2,1769.7,6.47381]
[1743690976757,6.06744698,1770.2,1769.8,5.65024]
[1743690977357,12.34241,1770.1,1769.7,6.47389]
[1743690977564,5.65078,1769.7,1769.4,0.7575]
[1743690977762,5.6511,1769.6,1769.4,0.7575]
[1743690977965,6.693,1769.6,1769.2,8.09238723]
[1743690978166,6.693,1769.6,1769.2,5.6521]
[1743690978372,12.34422,1769.6,1769.3,5.65183]
[1743690978666,5.65134,1769.5,1769.1,6.45978]
[1743690978870,5.65134,1769.5,1769.1,12.11226]
[1743690979173,5.65179,1769.4,1769.1,0.05]
[1743690979869,5.65227,1769.2,1769.1,0.05]
[1743690980167,5.65202,1769.3,1769.1,0.05]
[1743690980467,5.65166,1769.4,1769.1,0.05]
[1743690980990,12.51128566,1769.7,1769.3,5.65191]
[1743690981186,9.693,1769.6,1769.1,0.05]
[1743690981355,5.65179,1769.4,1769.1,5.70256]
[1743690981556,20.99527,1769.6,1769.2,5.65214]
[1743690982171,9.693,1769.6,1769.3,5.65184]
[1743690982490,12.34416,1769.9,1769.5,5.65131]
[1743690982802,14.2669821,1769.9,1769.5,5.65113]
[1743690982943,5.65078,1769.7,1769.3,12.11084]
[1743690983339,14.2670221,1769.9,1769.5,5.65109]
[1743690983744,8.6168221,1769.9,1769.6,5.65081]
[1743690983941,14.2669921,1769.9,1769.5,5.65111]
[1743690984146,8.6168221,1769.9,1769.6,5.65088]
[1743690984343,6.694,1769.9,1769.7,5.6506]
[1743690984663,3.0,1770.0,1769.8,11.3007]
[1743690984978,5.64944,1770.1,1769.8,5.65035]
[1743690985176,5.65046,1769.8,1769.5,5.65122]
[1743690985375,5.65046,1769.8,1769.4,6.40387]
[1743690985575,11.866086,1769.8,1769.4,6.40387]
[1743690985781,6.215506,1769.8,1769.4,6.40387]
[1743690986344,5.65088,1769.7,1769.3,5.65184]
[1743690986566,12.34388,1769.7,1769.3,5.65177]
[1743690986877,11.30221,1769.6,1769.2,5.65226]
[1743690987079,7.450541,1769.6,1769.3,5.65194]
[1743690987253,4.799521,1769.6,1769.3,5.65178]
[1743690987447,10.450531,1769.6,1769.3,5.65178]
[1743690987859,5.65101,1769.6,1769.2,5.65214]
[1743690988058,12.75926901,1769.7,1769.3,5.65183]
[1743690988465,5.6511,1769.6,1769.3,5.65183]
[1743690988674,0.7678,1769.5,1769.2,5.65214]
[1743690988981,12.75923901,1769.7,1769.2,5.65227]
[1743690989153,12.5783939,1769.6,1769.2,5.65227]
[1743690989350,12.75923901,1769.7,1769.4,5.65161]
[1743690989553,12.75923901,1769.7,1769.3,11.30372]
[1743690989780,6.693,1769.7,1769.2,0.8255]
[1743690989955,9.692,1769.8,1769.5,5.65119]
[1743690990155,5.65084,1769.7,1769.3,5.65183]
[1743690990355,5.651,1769.6,1769.3,5.65183]
[1743690990565,12.836024,1769.7,1769.3,5.65182]
[1743690990879,7.185124,1769.7,1769.3,11.30364]
[1743690991080,3.0,1769.8,1769.2,0.8255]
[1743690991281,9.692,1769.8,1769.5,5.65113]
[1743690991489,15.34235,1769.8,1769.5,5.65113]
[1743690991778,5.65092,1769.7,1769.3,5.6519]
[1743690992284,5.65104,1769.6,1769.3,5.6519]
[1743690992489,5.65092,1769.7,1769.3,5.65184]
[1743690992664,11.30172,1769.7,1769.3,11.30368]
[1743690992851,11.30171,1769.7,1769.3,11.30368]
[1743690993052,5.65084,1769.7,1769.4,5.65157]
[1743690993380,5.65084,1769.7,1769.3,5.65184]
[1743690993381,20.093086,1769.7,1769.3,5.65182]
[1743690994248,20.093126,1769.7,1769.3,5.65178]
[1743690994449,14.442166,1769.7,1769.3,5.65178]
[1743690994685,5.651,1769.6,1769.3,5.65178]
[1743690995066,5.6515,1769.5,1769.1,5.70248]
[1743690995272,5.6515,1769.5,1769.1,0.05]
[1743690995273,5.65209,1769.3,1769.1,0.05]
[1743690995468,16.15047,1769.2,1769.1,0.05]
[1743690995701,3.0,1769.1,1768.1,0.05]
[1743690995992,3.0,1768.6,1768.1,0.05]
[1743690996183,6.691,1768.5,1768.2,5.65539]
[1743690996355,3.0,1768.6,1768.1,0.05]
[1743690996356,9.691,1768.6,1768.1,0.05]
[1743690996548,9.691,1768.6,1768.3,5.65508]
[1743690996765,9.691,1768.6,1768.3,6.4171]
[1743690997292,6.691,1768.6,1768.3,6.41721]
[1743690997788,12.34532,1768.6,1768.3,0.7621]
[1743690997965,5.65482,1768.5,1768.1,0.05]
[1743690998161,13.54144369,1768.6,1768.1,5.70575]
[1743690998362,6.691,1768.6,1768.2,5.65527]
[1743690998567,6.691,1768.6,1768.4,5.65479]
[1743690998873,5.65366,1768.8,1768.4,5.65462]
[1743690999087,3.0,1768.8,1768.4,6.43982]
[1743690999276,3.0,1768.8,1768.4,6.4398]
[1743690999277,8.65355,1768.8,1768.4,6.4398]
[1743690999786,0.41815363,1768.9,1768.6,5.65403]
[1743691000087,5.65292,1769.0,1768.6,5.65403]
[1743691000477,5.65292,1769.0,1768.5,5.65431]
[1743691000677,5.65334,1768.9,1768.5,11.30869]
[1743691000889,5.65334,1768.9,1768.5,5.65431]
[1743691001055,5.65334,1768.9,1768.4,0.7852]
[1743691001056,5.65366,1768.8,1768.4,6.43992]
[1743691001257,5.65366,1768.8,1768.4,0.7852]
[1743691001453,5.65366,1768.8,1768.4,6.44]
[1743691001759,5.6543,1768.6,1768.3,0.565527]
[1743691001959,5.65451,1768.5,1768.1,6.53366]
[1743691002155,5.65451,1768.5,1768.1,12.18924]
[1743691002389,5.65451,1768.5,1768.1,12.18913]
[1743691002687,5.65451,1768.5,1768.1,6.53348]
[1743691002853,5.65451,1768.5,1768.1,12.18914]
[1743691003057,5.65451,1768.5,1768.1,13.463054]
[1743691003258,5.65428,1768.6,1768.2,5.65542]
[1743691003686,3.0,1768.5,1768.1,0.05]
[1743691003892,5.65526,1768.3,1768.1,0.05]
[1743691004185,5.65546,1768.2,1768.1,0.05]
[1743691004388,23.439932,1768.2,1768.1,0.05]
[1743691004574,23.8580008,1768.2,1768.1,0.05]
[1743691005087,14.30993,1768.4,1768.1,0.05]
[1743691005594,8.65484,1768.4,1768.1,0.05]
[1743691005882,6.691,1768.5,1768.2,6.47217]
[1743691006095,6.691,1768.5,1768.2,0.8169]
[1743691006265,8.65509,1768.4,1768.1,0.05]
[1743691006465,6.691,1768.5,1768.2,5.65534]
[1743691006792,13.10458,1768.8,1768.4,5.65467]
[1743691007358,13.52641762,1768.8,1768.4,5.65465]
[1743691007556,3.0,1768.7,1768.5,5.6544]
[1743691007789,3.0,1768.7,1768.5,5.65439]
[1743691007967,7.4835,1769.0,1768.6,5.65403]
[1743691008368,7.4835,1769.0,1768.7,5.65385]
[1743691008666,19.33016,1769.4,1768.8,0.8265]
[1743691008880,14.09541873,1769.4,1768.8,0.8265]
[1743691009188,5.65197,1769.3,1768.9,11.30607]
[1743691009392,5.65228,1769.2,1768.9,5.65299]
[1743691009593,3.0,1769.3,1768.8,0.05653297]
[1743691009890,3.0,1769.3,1768.6,0.8154]
[1743691009891,3.0,1769.3,1769.0,5.65276]
[1743691010392,15.2525936,1769.4,1769.1,5.65248]
[1743691010594,4.52525936,1769.3,1769.1,5.65244]
[1743691010801,2.2629166,1769.6,1769.4,5.65145]
[1743691010998,0.41776681,1769.7,1769.0,0.7974]
[1743691011188,6.69,1769.7,1769.0,0.7974]
[1743691011383,5.6511,1769.6,1769.2,5.65214]
[1743691011588,5.6511,1769.6,1769.3,5.65181]
[1743691011766,12.34072,1769.7,1769.2,5.6521]
[1743691011961,1.234072,1769.6,1769.3,5.65176]
[1743691012179,12.34072,1769.7,1769.3,5.65176]
[1743691012502,9.689,1769.7,1769.3,5.6518]
[1743691012799,15.33984,1769.7,1769.3,11.30358]
[1743691012978,20.99073,1769.7,1769.3,5.65178]
[1743691013367,15.33984,1769.7,1769.4,5.65162]
[1743691013575,15.33984,1769.7,1769.4,5.65156]
[1743691013785,9.689,1769.7,1769.4,5.65156]
[1743691013974,41.4891,1769.9,1769.6,5.65099]
[1743691014179,15.33938,1769.8,1769.5,5.65125]
[1743691014395,15.33938,1769.8,1769.1,5.65244]
[1743691014396,15.33938,1769.8,1769.4,5.65151]
[1743691014703,9.689,1769.8,1769.4,5.65159]
[1743691014864,5.65089,1769.7,1769.3,5.65178]
[1743691015065,5.65104,1769.6,1769.3,5.65178]
[1743691015301,5.65141,1769.5,1769.1,11.30508]
[1743691015471,1.55919084,1769.6,1769.1,5.65254]
[1743691015677,0.76,1769.5,1769.0,0.7766]
[1743691015895,3.76,1769.5,1769.2,5.65215]
[1743691016082,3.0,1769.5,1769.2,5.65204]
[1743691016275,5.65201,1769.3,1769.0,5.65263]
[1743691016468,15.0565,1769.5,1769.1,5.65247]
[1743691016687,4.50565,1769.5,1769.3,5.65168]
[1743691016904,3.0,1769.5,1769.2,5.65219]
[1743691017110,3.0,1769.5,1769.3,5.65195]
[1743691017408,8.65141,1769.5,1769.1,11.30514]
[1743691017571,5.65171,1769.4,1769.1,5.65257]
[1743691017923,3.0,1769.5,1769.2,5.65209]
[1743691018204,5.65185,1769.4,1769.0,11.3058]
[1743691018371,10.12424728,1769.5,1769.1,5.65246]
[1743691018571,4.47290728,1769.5,1769.2,11.3042]
[1743691018767,4.47290728,1769.5,1768.8,5.65323]
[1743691018768,6.086494,1769.9,1769.3,0.8156]
[1743691018987,7.4416,1769.9,1769.6,5.65095]
[1743691019197,11.81974,1770.0,1769.6,5.65084]
[1743691019574,3.0,1769.9,1769.6,5.65084]
[1743691019785,3.0,1769.9,1769.5,5.65124]
[1743691019786,14.30032,1769.9,1769.5,5.65124]
[1743691019988,14.30032,1769.9,1769.3,0.8156]
[1743691019989,3.42247253,1769.9,1769.3,0.8156]
[1743691020311,3.42247253,1769.9,1769.2,5.65198]
[1743691020312,8.65102,1769.6,1769.2,5.65198]
[1743691020504,5.6516,1769.5,1769.1,5.65252]
[1743691020711,5.6516,1769.5,1769.1,11.305]
[1743691021004,5.65213,1769.3,1768.9,5.65311]
[1743691021203,5.65232,1769.2,1768.9,5.65311]
[1743691021405,11.30475,1769.2,1768.8,6.42575]
[1743691021574,3.0,1769.3,1768.8,6.42563]
[1743691021774,1.23779884,1769.4,1768.9,5.65323]
[1743691021984,12.33514,1769.9,1769.5,5.65131]
[1743691022181,1.65963013,1769.8,1769.3,5.6519]
[1743691022403,5.65112,1769.6,1769.3,5.6519]
[1743691022701,5.65112,1769.6,1769.3,5.6518]
[1743691022903,5.65141,1769.5,1769.1,5.65242]
[1743691023206,5.65212,1769.3,1769.0,0.7683]
[1743691023383,5.65212,1769.3,1768.9,5.65322]
[1743691023587,5.65269,1769.1,1768.8,6.42178]
[1743691023799,11.30545,1769.1,1768.8,6.42178]
[1743691023998,11.30473,1769.2,1768.8,6.42173]
[1743691024172,11.30535,1769.1,1768.7,5.65377]
[1743691024374,5.65344,1768.9,1768.5,5.65437]
[1743691024684,12.33744,1768.9,1768.5,11.30877]
[1743691024897,12.33744,1768.9,1768.3,0.7591]
[1743691024898,6.684,1768.9,1768.3,0.7591]
[1743691025206,13.6757,1769.2,1769.0,5.65283]
[1743691025515,6.684,1769.2,1769.1,5.65259]
[1743691026002,6.684,1769.2,1769.0,5.65283]
[1743691026206,12.33648,1769.2,1768.7,12.05777]
[1743691026394,5.65276,1769.1,1768.7,6.40395]
[1743691026594,0.7811,1769.1,1768.4,0.7502]
[1743691026795,6.43384,1769.1,1768.7,5.65373]
[1743691026996,5.65301,1769.0,1768.6,11.30815]
[1743691027201,3.7811,1769.1,1768.8,5.6534]
[1743691027505,0.7811,1769.5,1769.3,5.65185]
[1743691027707,12.33527,1769.6,1769.2,5.65222]
[1743691027888,3.0,1769.5,1769.3,5.65194]
[1743691028090,12.335,1769.6,1769.3,5.65179]
[1743691028303,12.335,1769.6,1769.2,12.07417]
[1743691028502,12.335,1769.6,1769.2,13.281587]
[1743691028696,12.335,1769.6,1769.3,5.65192]
[1743691029122,12.335,1769.6,1769.3,5.65194]
[1743691029299,6.684,1769.6,1769.3,5.65191]
[1743691029483,6.684,1769.6,1769.4,5.65154]
[1743691029680,12.33501,1769.6,1769.3,5.65182]
[1743691029880,5.65189,1769.4,1769.0,5.65287]
[1743691030087,5.6521,1769.3,1768.9,6.41032]
[1743691030317,6.4648,1769.3,1768.9,5.65322]
[1743691030610,5.65263,1769.1,1768.8,5.6534]
[1743691030980,5.65247,1769.2,1768.8,5.6534]
[1743691031179,3.0,1769.3,1769.1,5.65245]
[1743691031412,13.15861,1769.5,1769.2,5.65227]
[1743691031613,11.3022,1769.6,1769.2,5.65212]
[1743691031814,5.65212,1769.3,1768.9,6.4116]
[1743691031983,5.65212,1769.3,1768.9,12.06466]
[1743691032179,3.0,1769.4,1769.2,5.65215]
[1743691032381,3.0,1769.4,1768.9,2.029071]
[1743691032587,3.0,1769.4,1769.2,11.3042]
[1743691033009,12.33414,1769.6,1769.3,5.6519]
[1743691033314,6.97,1769.9,1769.4,0.05651902]
[1743691033512,11.82005,1769.9,1769.6,5.6508]
[1743691034039,5.65086,1769.7,1769.4,5.65162]
[1743691035636,3.0,1769.7,1769.4,11.30312]
[1743691035837,11.82009,1769.9,1769.3,5.65195]
[1743691036042,6.17,1769.9,1769.6,11.30171]
[1743691036239,11.82003,1769.9,1769.6,5.65082]
[1743691036803,5.65092,1769.7,1769.3,5.65195]
[1743691037058,5.65092,1769.7,1769.2,6.45531]
[1743691037059,5.65042,1769.8,1769.2,0.8031]
[1743691037352,16.14697632,1769.9,1769.5,5.65115]
[1743691037546,4.84672632,1769.9,1769.3,11.30372]
[1743691037758,11.30097,1769.8,1769.4,5.65157]
[1743691037904,7.26511963,1769.8,1769.4,5.65153]
[1743691038218,0.8299,1770.2,1769.9,5.65003]
[1743691038426,0.8299,1770.2,1769.6,0.8302]
[1743691038635,5.64927,1770.2,1769.8,5.65023]
[1743691038954,13.15805,1770.5,1769.7,5.6505]
[1743691038955,6.40959,1770.1,1769.7,5.6505]
[1743691039243,0.640959,1770.0,1769.7,5.65046]
[1743691039407,6.40945,1770.1,1769.7,5.65046]
[1743691039609,5.64986,1770.0,1769.6,12.13195]
[1743691039838,5.64986,1770.0,1769.6,11.30164]
[1743691040142,5.64986,1770.0,1769.7,5.65061]
[1743691040445,6.40945,1770.1,1769.8,5.65025]
[1743691040614,0.76,1770.1,1769.4,6.41632]
[1743691040820,3.76,1770.1,1769.8,5.65016]
[1743691041245,3.76,1770.1,1769.9,5.64991]
[1743691041417,5.64942,1770.1,1769.8,5.65016]
[1743691041741,12.32809,1770.2,1769.8,5.65016]
[1743691041944,7.44,1770.5,1770.2,5.64887]
[1743691042109,13.08815,1770.5,1770.1,6.47624]
[1743691042309,7.44,1770.5,1769.9,6.47689]
[1743691042517,0.762,1770.5,1770.2,5.64906]
[1743691042711,0.762,1770.5,1770.2,11.29803]
[1743691043043,8.64781,1770.6,1770.3,5.6486]
[1743691043239,5.64835,1770.5,1770.1,5.64932]
[1743691043410,7.31953605,1770.6,1770.2,5.64883]
[1743691043611,18.64981784,1770.7,1770.3,5.64847]
[1743691044047,6.83213784,1770.7,1770.3,5.64847]
[1743691044211,9.677,1770.8,1770.5,5.6479]
[1743691044410,15.32417,1770.8,1770.4,5.64838]
[1743691044613,5.64895,1770.3,1769.9,6.47052]
[1743691044813,5.64908,1770.2,1769.8,5.65022]
[1743691045118,5.64953,1770.1,1769.7,12.07378]
[1743691045321,5.64908,1770.2,1769.8,5.65033]
[1743691045624,5.64989,1770.0,1769.6,5.65083]
[1743691045821,8.64928,1770.2,1769.8,5.65019]
[1743691046015,7.4991,1770.3,1769.7,5.65067]
[1743691046233,5.64921,1770.2,1769.8,5.65015]
[1743691046418,5.64944,1770.1,1769.8,5.65015]
[1743691046833,5.64944,1770.1,1769.7,5.65067]
[1743691047030,5.64973,1770.0,1769.7,5.65067]
[1743691047233,5.64973,1770.0,1769.6,11.30179]
[1743691047549,5.64973,1770.0,1769.7,5.65065]
[1743691047750,6.779643,1770.0,1769.7,5.65065]
[1743691047950,6.779643,1770.0,1769.6,5.65083]
[1743691048153,6.779643,1770.0,1769.7,5.65065]
[1743691048535,12.429633,1770.0,1769.6,11.30171]
[1743691048732,7.556943,1770.0,1769.6,5.65099]
[1743691048936,0.7773,1770.2,1769.9,5.64983]
[1743691049235,12.32577,1770.3,1770.0,5.64958]
[1743691049761,12.32577,1770.3,1769.9,12.09974]
[1743691050057,6.677,1770.3,1770.0,5.64965]
[1743691050357,6.677,1770.3,1769.6,6.40919]
[1743691050526,5.64939,1770.1,1769.7,5.65052]
[1743691050725,9.31682,1770.2,1769.8,5.6502]
[1743691050961,5.64941,1770.1,1769.8,5.6502]
[1743691051182,14.96621,1770.2,1769.8,11.3004]
[1743691051346,3.0,1770.2,1770.0,5.64955]
[1743691051679,3.0,1770.2,1769.9,5.64998]
[1743691051962,5.64946,1770.1,1769.8,5.65031]
[1743691052132,8.64918,1770.2,1769.8,5.65021]
[1743691052340,5.64953,1770.1,1769.6,0.7585]
[1743691052529,8.64913,1770.2,1769.8,5.65008]
[1743691052530,14.29837,1770.2,1769.8,5.65008]
[1743691052730,5.64995,1770.0,1769.6,6.40938]
[1743691052997,5.64995,1770.0,1769.7,5.65064]
[1743691053155,5.6499,1770.0,1769.6,0.7585]
[1743691053352,6.42972,1770.1,1769.7,11.30097]
[1743691053598,5.64915,1770.2,1769.7,5.65045]
[1743691053807,5.64915,1770.2,1769.8,11.865285]
[1743691053973,5.64915,1770.2,1769.9,5.65]
[1743691054304,7.457,1770.3,1769.6,6.40942]
[1743691054458,11.29996,1770.0,1769.6,6.40942]
[1743691054659,12.06063,1769.9,1769.5,5.65116]
[1743691054912,5.65097,1769.7,1769.3,0.8046]
[1743691055205,5.65194,1769.4,1769.0,6.8617016]
[1743691055404,0.824,1769.5,1769.0,6.8617016]
[1743691055405,6.47541,1769.5,1769.1,5.65247]
[1743691055700,5.65173,1769.4,1769.0,5.6527]
[1743691055907,5.65173,1769.4,1769.1,5.65256]
[1743691056217,5.65198,1769.3,1769.0,5.6527]
[1743691056416,5.65168,1769.4,1769.0,5.65277]
[1743691056557,5.65197,1769.3,1769.0,5.65277]
[1743691057257,12.32497,1769.3,1769.0,5.65277]
[1743691057456,12.32497,1769.3,1768.9,12.576931]
[1743691057677,12.32497,1769.3,1768.9,6.923751]
[1743691057992,5.65244,1769.2,1768.9,5.65318]
[1743691058170,6.673,1769.3,1769.2,5.65227]
[1743691058369,17.97424,1769.6,1769.2,5.65227]
[1743691058565,17.97424,1769.6,1769.2,11.30437]
[1743691058770,6.672,1769.6,1769.4,5.65141]
[1743691058971,6.672,1769.6,1769.5,5.65131]
[1743691059279,5.65039,1769.8,1769.4,6.22220286]
[1743691059474,5.65067,1769.7,1769.0,6.42739]
[1743691059708,11.30358,1769.4,1769.0,12.08024]
[1743691059911,6.673,1769.4,1769.0,0.7746]
[1743691060117,6.673,1769.4,1769.2,11.30421]
[1743691060270,6.673,1769.4,1769.2,5.65205]
[1743691060484,6.673,1769.4,1769.1,5.65253]
[1743691060815,6.673,1769.4,1769.2,5.65221]
[1743691062013,12.32463,1769.4,1769.1,6.86044]
[1743691062221,6.673,1769.4,1769.1,6.86055]
[1743691062425,6.673,1769.4,1769.2,5.65214]
[1743691063485,6.673,1769.4,1769.2,5.65213]
[1743691064003,6.673,1769.4,1769.2,5.65212]
[1743691064180,6.673,1769.4,1769.2,6.903384]
[1743691064382,6.673,1769.4,1769.2,5.65212]
[1743691064605,6.673,1769.4,1769.1,11.30503]
[1743691064807,6.673,1769.4,1769.1,11.30496]
[1743691065110,6.673,1769.4,1769.2,5.65227]
[1743691065315,6.673,1769.4,1769.3,5.65195]
[1743691065514,6.673,1769.4,1769.2,5.65227]
[1743691065817,12.32472,1769.4,1768.8,0.8039]
[1743691066015,6.673,1769.4,1768.9,5.65323]
[1743691066216,6.673,1769.4,1769.2,5.65226]
[1743691066386,17.97659,1769.4,1769.1,5.65245]
[1743691066586,6.673,1769.4,1769.1,5.65236]
[1743691066929,6.673,1769.4,1769.2,5.65205]
[1743691067080,6.673,1769.4,1769.2,6.217255]
[1743691067437,0.7595,1770.0,1769.7,5.65038]
[1743691067795,0.7595,1770.0,1769.4,6.44569]
[1743691068003,5.65049,1769.8,1769.4,12.0972]
[1743691068207,5.65049,1769.8,1769.4,13.30692]
[1743691068412,5.65017,1769.9,1769.5,5.6513]
[1743691068601,5.6505,1769.8,1769.5,5.6513]
[1743691068793,5.65017,1769.9,1769.5,5.65118]
[1743691069031,5.65017,1769.9,1769.6,5.65098]
[1743691069348,6.40922,1770.0,1769.6,5.65077]
[1743691069501,6.40922,1770.0,1769.7,5.65064]
[1743691070014,12.05915,1770.0,1769.6,5.65077]
[1743691070219,5.65004,1769.9,1769.6,5.65077]
[1743691070421,5.65049,1769.8,1769.4,5.65157]
[1743691070619,5.65049,1769.8,1769.5,5.65131]
[1743691071107,5.65049,1769.8,1769.4,5.65157]
[1743691071434,5.65005,1769.9,1769.5,5.65129]
[1743691071618,0.7595,1770.0,1769.6,5.65075]
[1743691072130,5.65017,1769.9,1769.5,6.4052]
[1743691072336,5.65017,1769.9,1769.4,11.868317]
[1743691072337,5.65045,1769.8,1769.4,11.868317]
[1743691072508,11.30027,1769.9,1769.6,5.65099]
[1743691072700,11.30027,1769.9,1769.5,5.65128]
[1743691073229,0.7595,1770.0,1769.6,5.6509]
[1743691073230,6.40928,1770.0,1769.6,5.6509]
[1743691073732,5.65058,1769.8,1769.4,6.216667]
[1743691073937,0.7595,1770.0,1769.3,0.8305]
[1743691074099,5.65178,1769.4,1769.0,5.65275]
[1743691074434,0.8099,1769.5,1768.9,0.7899]
[1743691074633,5.65216,1769.3,1768.9,6.44307]
[1743691074840,5.65216,1769.3,1769.0,5.65288]
[1743691075716,11.30353,1769.4,1769.0,11.30567]
[1743691075907,5.65208,1769.3,1769.0,5.65279]
[1743691076539,5.65228,1769.2,1768.9,6.44299]
[1743691076833,11.30472,1769.2,1768.9,5.65309]
[1743691077037,5.65228,1769.2,1768.9,5.65318]
[1743691077809,11.30471,1769.2,1768.9,5.65318]
[1743691078011,5.65267,1769.1,1768.7,6.45662]
[1743691078210,5.65267,1769.1,1768.4,6.4827]
[1743691078211,5.65389,1768.7,1768.4,6.4827]
[1743691078414,5.65452,1768.5,1768.2,5.65543]
[1743691078615,5.65485,1768.4,1768.1,0.05]
[1743691078854,6.668,1768.5,1768.1,0.05]
[1743691078855,6.44432,1768.3,1768.1,0.05]
[1743691079052,6.299892,1768.2,1768.1,0.05]
[1743691080070,7.058192,1768.2,1768.1,0.05]
[1743691081545,13.228192,1768.2,1768.1,0.05]
[1743691081914,19.896192,1768.2,1768.1,0.05]
[1743691082727,7.058192,1768.2,1768.1,0.05]
[1743691082932,13.08176,1768.2,1768.1,0.05]
[1743691083128,19.25176,1768.2,1768.1,0.05]